fUST/lending_fUST_20250724
["ID","MTS","AMOUNT","RATE_DAILY","PERIOD"]
[374536409,1753342246211,-327.11976304,0.00021934,6]
[374536410,1753342246220,-1313.39,0.00022,7]
[374536411,1753342246230,-8291.67,0.00022,7]
[374536412,1753342246239,-157.0,0.00022,2]
[374536413,1753342246248,-157.0,0.00022,2]
[374536414,1753342246260,-32199.3,0.00022,2]
[374536415,1753342246269,-1879.03,0.00022,7]
[374536416,1753342246279,-160.0,0.00022,7]
[374536417,1753342246288,-3007.35833008,0.00022,2]
[374536418,1753342246298,-609.5,0.0002203,5]
[374536419,1753342246308,-4361.07802447,0.00022077,2]
[374536420,1753342246317,-500.0,0.00022091,2]
[374536421,1753342246328,-327.11976304,0.00022107,6]
[374536422,1753342246338,-500.0,0.0002216,2]
[374536423,1753342246347,-708.25,0.00022191,2]
[374536424,1753342246357,-339.33,0.00022191,2]
[374536425,1753342246367,-460.0,0.00022191,2]
[374536426,1753342246376,-490.97,0.00022191,2]
[374536427,1753342246385,-460.0,0.00022191,2]
[374536428,1753342246394,-1958.35,0.00022191,2]
[374536429,1753342246404,-460.0,0.00022191,2]
[374536430,1753342246414,-460.0,0.00022191,2]
[374536431,1753342246423,-778.53,0.00022191,2]
[374536432,1753342246433,-1316.68,0.00022191,2]
[374536433,1753342246442,-446.71,0.00022191,2]
[374536434,1753342246451,-1455.7,0.00022191,2]
[374536435,1753342246460,-383.58809946,0.00022191,2]
[374536436,1753342246470,-1022.23,0.00022191,2]
[374536437,1753342246480,-460.0,0.00022191,2]
[374536438,1753342246490,-460.0,0.00022191,2]
[374536439,1753342246500,-460.0,0.00022191,2]
[374536440,1753342246511,-2645.61,0.00022191,2]
[374536441,1753342246520,-561.56,0.00022191,2]
[374536442,1753342246529,-460.0,0.00022191,2]
[374536443,1753342246539,-460.0,0.00022191,2]
[374536444,1753342246549,-708.99,0.00022191,2]
[374536445,1753342246559,-460.0,0.00022191,2]
[374536446,1753342246569,-460.0,0.00022191,2]
[374536447,1753342246578,-609.9,0.00022191,2]
[374536448,1753342246588,-460.0,0.00022191,2]
[374536449,1753342246597,-794.3,0.00022191,2]
[374536450,1753342246607,-925.93,0.00022191,2]
[374536451,1753342246616,-460.0,0.00022191,2]
[374536452,1753342246625,-460.0,0.00022191,2]
[374536453,1753342246635,-460.0,0.00022191,2]
[374536454,1753342246645,-2146.65,0.00022191,2]
[374536455,1753342246654,-953.58,0.00022191,2]
[374536456,1753342246663,-460.0,0.00022191,2]
[374536457,1753342246672,-1030.7,0.00022191,2]
[374536458,1753342246682,-327.11976304,0.00022279,6]
[374536459,1753342246692,-609.5,0.00022389,5]
[374536460,1753342246701,-327.11976304,0.00022452,7]
[374536461,1753342246711,-708.25,0.00022465,2]
[374536462,1753342246721,-216.35,0.00022465,2]
[374536463,1753342246730,-460.0,0.00022465,2]
[374536464,1753342246739,-1958.35,0.00022465,2]
[374536465,1753342246749,-460.0,0.00022465,2]
[374536466,1753342246760,-460.0,0.00022465,2]
[374536467,1753342246770,-778.53,0.00022465,2]
[374536468,1753342246779,-1316.68,0.00022465,2]
[374536469,1753342246789,-1757.13,0.00022465,2]
[374536472,1753342246799,-1455.7,0.00022465,2]
[374536475,1753342246809,-1022.23,0.00022465,2]
[374536478,1753342246818,-449.23349605,0.00022465,2]
[374536480,1753342246828,-460.0,0.00022465,2]
[374536482,1753342246838,-460.0,0.00022465,2]
[374536484,1753342246848,-2645.61,0.00022465,2]
[374536486,1753342246857,-561.56,0.00022465,2]
[374536487,1753342246867,-460.0,0.00022465,2]
[374536488,1753342246876,-460.0,0.00022465,2]
[374536489,1753342246886,-708.99,0.00022465,2]
[374536490,1753342246897,-460.0,0.00022465,2]
[374536491,1753342246906,-460.0,0.00022465,2]
[374536492,1753342246916,-609.9,0.00022465,2]
[374536493,1753342246926,-460.0,0.00022465,2]
[374536494,1753342246936,-794.3,0.00022465,2]
[374536495,1753342246947,-925.93,0.00022465,2]
[374536496,1753342246956,-460.0,0.00022465,2]
[374536497,1753342246966,-460.0,0.00022465,2]
[374536498,1753342246976,-460.0,0.00022465,2]
[374536499,1753342246985,-2146.65,0.00022465,2]
[374536500,1753342246995,-953.58,0.00022465,2]
[374536501,1753342247004,-460.0,0.00022465,2]
[374536502,1753342247018,-1030.7,0.00022465,2]
[374536503,1753342247028,-245.39646125,0.000226,4]
[374536504,1753342247036,-323.762118,0.00022603,2]
[374536505,1753342247046,-327.11976304,0.00022624,7]
[374536506,1753342247056,-2157.0,0.0002263,2]
[374536507,1753342247069,-969.0,0.0002263,2]
[374536508,1753342247079,-407.0,0.0002263,2]
[374536509,1753342247089,-421.197,0.0002263,2]
[374536510,1753342247098,-610.83,0.00022666,3]
[374536511,1753342247108,-533.18,0.00022704,4]
[374536512,1753342247118,-708.25,0.00022739,2]
[374536513,1753342247128,-460.0,0.00022739,2]
[374536514,1753342247139,-1958.35,0.00022739,2]
[374536515,1753342247148,-460.0,0.00022739,2]
[374536516,1753342247159,-460.0,0.00022739,2]
[374536517,1753342247168,-778.53,0.00022739,2]
[374536519,1753342247178,-1316.68,0.00022739,2]
[374536521,1753342247187,-1455.7,0.00022739,2]
[374536522,1753342247279,-1022.23,0.00022739,2]
[374536524,1753342247289,-460.0,0.00022739,2]
[374536525,1753342247299,-460.0,0.00022739,2]
[374536526,1753342247308,-2645.61,0.00022739,2]
[374536527,1753342247317,-561.56,0.00022739,2]
[374536528,1753342247326,-473.83700049,0.00022739,2]
[374536529,1753342247336,-558.63,0.00022739,2]
[374536530,1753342247346,-708.99,0.00022739,2]
[374536531,1753342247356,-460.0,0.00022739,2]
[374536532,1753342247365,-164.17014163,0.00022739,2]
[374536533,1753342247375,-609.9,0.00022739,2]
[374536534,1753342247385,-460.0,0.00022739,2]
[374536535,1753342247397,-794.3,0.00022739,2]
[374536536,1753342247407,-925.93,0.00022739,2]
[374536537,1753342247416,-250.16490601,0.00022739,2]
[374536538,1753342247426,-529.07,0.00022739,2]
[374536539,1753342247435,-2146.65,0.00022739,2]
[374536540,1753342247445,-242.47765955,0.00022739,2]
[374536541,1753342247455,-460.0,0.00022739,2]
[374536543,1753342247464,-1030.7,0.00022739,2]
[374536545,1753342247474,-953.58,0.00022739,2]
[374536546,1753342247483,-609.5,0.00022748,5]
[374536547,1753342247492,-610.83,0.00022766,4]
[374536548,1753342247502,-327.11976304,0.00022797,7]
[374536549,1753342247513,-533.18,0.00022804,3]
[374536550,1753342247523,-239.0,0.00022837,2]
[374536551,1753342247533,-610.83,0.00022866,3]
[374536552,1753342247543,-1711.7267647,0.000229,7]
[374536553,1753342247552,-533.18,0.00022904,4]
[374536554,1753342247562,-150.0,0.00022956,2]
[374536555,1753342247571,-474.32336944,0.00022957,2]
[374536556,1753342247580,-610.84494541,0.00022966,4]
[374536557,1753342247590,-327.11976304,0.00022969,8]
[374536558,1753342247599,-1124.9,0.00023,2]
[374536559,1753342247608,-43268.94729141,0.00023,4]
[374536560,1753342247618,-160.0,0.00023,2]
[374536561,1753342247627,-215.0738,0.00023001,2]
[374536562,1753342247636,-533.18,0.00023004,3]
[374536563,1753342247645,-708.25,0.00023013,2]
[374536564,1753342247655,-460.0,0.00023013,2]
[374536565,1753342247665,-1958.35,0.00023013,2]
[374536566,1753342247675,-460.0,0.00023013,2]
[374536567,1753342247684,-778.53,0.00023013,2]
[374536568,1753342247693,-1316.68,0.00023013,2]
[374536569,1753342247703,-1455.7,0.00023013,2]
[374536570,1753342247712,-1022.23,0.00023013,2]
[374536571,1753342247721,-460.0,0.00023013,2]
[374536572,1753342247731,-460.0,0.00023013,2]
[374536573,1753342247741,-2645.61,0.00023013,2]
[374536574,1753342247751,-561.56,0.00023013,2]
[374536575,1753342247761,-708.99,0.00023013,2]
[374536576,1753342247771,-460.0,0.00023013,2]
[374536577,1753342247780,-609.9,0.00023013,2]
[374536578,1753342247790,-483.68209332,0.00023013,2]
[374536579,1753342247799,-794.3,0.00023013,2]
[374536580,1753342247810,-925.93,0.00023013,2]
[374536581,1753342247819,-2146.65,0.00023013,2]
[374536582,1753342247829,-460.0,0.00023013,2]
[374536583,1753342247839,-1030.7,0.00023013,2]
[374536584,1753342247848,-533.18,0.00023104,7]
[374536585,1753342247858,-609.5,0.00023107,6]
[374536586,1753342247868,-327.11976304,0.00023141,8]
[374536587,1753342247878,-151.0,0.0002316,7]
[374536588,1753342247888,-151.0,0.0002318,7]
[374536589,1753342247898,-151.0,0.0002318,7]
[374536590,1753342247907,-151.183589,0.0002318,7]
[374536591,1753342247917,-151.0,0.0002318,7]
[374536592,1753342247927,-151.0,0.0002318,7]
[374536593,1753342247936,-151.0,0.0002318,7]
[374536594,1753342247945,-151.0,0.0002318,7]
[374536595,1753342247954,-151.0,0.0002318,7]
[374536596,1753342247964,-152.003611,0.0002318,7]
[374536597,1753342247973,-152.003611,0.0002318,7]
[374536598,1753342247983,-500.0,0.00023195,2]
[374536599,1753342247992,-1879.03,0.000232,7]
[374536600,1753342248001,-533.18,0.00023204,4]
[374536601,1753342248012,-500.0,0.00023256,2]
[374536602,1753342248021,-708.25,0.00023287,2]
[374536603,1753342248030,-460.0,0.00023287,2]
[374536604,1753342248039,-1958.35,0.00023287,2]
[374536605,1753342248048,-460.0,0.00023287,2]
[374536606,1753342248058,-778.53,0.00023287,2]
[374536607,1753342248070,-1316.68,0.00023287,2]
[374536608,1753342248080,-1455.7,0.00023287,2]
[374536609,1753342248089,-1022.23,0.00023287,2]
[374536610,1753342248099,-177.87,0.00023287,2]
[374536611,1753342248109,-460.0,0.00023287,2]
[374536612,1753342248118,-2645.61,0.00023287,2]
[374536613,1753342248128,-561.56,0.00023287,2]
[374536614,1753342248137,-708.99,0.00023287,2]
[374536615,1753342248147,-579.28923589,0.00023287,2]
[374536616,1753342248157,-609.9,0.00023287,2]
[374536617,1753342248166,-794.3,0.00023287,2]
[374536618,1753342248176,-925.93,0.00023287,2]
[374536619,1753342248186,-2146.65,0.00023287,2]
[374536620,1753342248196,-460.0,0.00023287,2]
[374536621,1753342248206,-1030.7,0.00023287,2]
[374536622,1753342248215,-1313.39,0.000233,7]
[374536623,1753342248225,-8291.67,0.000233,7]
[374536624,1753342248234,-32199.3,0.000233,2]
[374536625,1753342248245,-533.18,0.00023304,5]
[374536626,1753342248263,-327.11976304,0.00023314,9]
[374536627,1753342248280,-3283.08947726,0.00023339,2]
[374536628,1753342248294,-151.0,0.000234,7]
[374536629,1753342248305,-151.0,0.000234,7]
[374536630,1753342248321,-151.0,0.000234,7]
[374536631,1753342248335,-151.0,0.000234,7]
[374536632,1753342248348,-151.0,0.000234,7]
[374536633,1753342248363,-151.0,0.000234,7]
[374536634,1753342248377,-533.18,0.00023404,4]
[374536635,1753342248392,-553.07509306,0.00023438,2]
[374536636,1753342248406,-609.5,0.00023465,6]
[374536637,1753342248420,-327.11976304,0.00023486,9]
[374536638,1753342248433,-1000.0,0.000235,2]
[374536639,1753342248447,-300.0,0.00023504,2]
[374536640,1753342248461,-533.18,0.00023504,4]
[374536641,1753342248475,-429.7456075,0.00023507,2]
[374536642,1753342248487,-429.7456075,0.00023507,2]
[374536643,1753342248503,-429.7456075,0.00023507,2]
[374536644,1753342248519,-708.25,0.00023561,2]
[374536645,1753342248532,-272.59,0.00023561,2]
[374536646,1753342248547,-1958.35,0.00023561,2]
[374536647,1753342248562,-233.29,0.00023561,2]
[374536648,1753342248576,-778.53,0.00023561,2]
[374536649,1753342248591,-1316.68,0.00023561,2]
[374536650,1753342248605,-1455.7,0.00023561,2]
[374536651,1753342248618,-1022.23,0.00023561,2]
[374536652,1753342248629,-678.39,0.00023561,2]
[374536653,1753342248640,-460.0,0.00023561,2]
[374536654,1753342248651,-2645.61,0.00023561,2]
[374536655,1753342248665,-561.56,0.00023561,2]
[374536656,1753342248680,-708.99,0.00023561,2]
[374536657,1753342248691,-609.9,0.00023561,2]
[374536658,1753342248703,-794.3,0.00023561,2]
[374536659,1753342248715,-925.93,0.00023561,2]
[374536660,1753342248729,-2146.65,0.00023561,2]
[374536661,1753342248740,-460.0,0.00023561,2]
[374536662,1753342248751,-1030.7,0.00023561,2]
[374536663,1753342248763,-533.18,0.00023604,6]
[374536664,1753342248775,-499.7,0.00023639,2]
[374536665,1753342248786,-327.11976304,0.00023659,9]
[374536666,1753342248799,-151.0,0.000237,6]
[374536667,1753342248811,-533.18,0.00023704,4]
[374536668,1753342248823,-3283.08947726,0.00023734,2]
[374536669,1753342248835,-250.0,0.00023743,2]
[374536670,1753342248847,-159.9507963,0.00023781,2]
[374536671,1753342248859,-533.28458021,0.00023804,3]
[374536672,1753342248870,-609.5,0.00023824,6]
[374536673,1753342248883,-548.28386372,0.00023824,2]
[374536674,1753342248895,-327.11976304,0.00023831,10]
[374536675,1753342248907,-708.25,0.00023835,2]
[374536676,1753342248919,-1958.35,0.00023835,2]
[374536677,1753342248931,-778.53,0.00023835,2]
[374536678,1753342248943,-1316.68,0.00023835,2]
[374536679,1753342248955,-1455.7,0.00023835,2]
[374536680,1753342248968,-1022.23,0.00023835,2]
[374536681,1753342248979,-678.39,0.00023835,2]
[374536682,1753342248992,-490.43970232,0.00023835,2]
[374536683,1753342249005,-561.56,0.00023835,2]
[374536684,1753342249023,-2645.61,0.00023835,2]
[374536685,1753342249035,-708.99,0.00023835,2]
[374536686,1753342249047,-609.9,0.00023835,2]
[374536687,1753342249061,-794.3,0.00023835,2]
[374536688,1753342249073,-925.93,0.00023835,2]
[374536689,1753342249085,-2146.65,0.00023835,2]
[374536690,1753342249099,-460.0,0.00023835,2]
[374536691,1753342249112,-603.10826919,0.00023904,2]
[374536692,1753342249124,-699.3897068,0.00023927,2]
[374536693,1753342249136,-150.183687,0.00023949,2]
[374536694,1753342249149,-1040.57581829,0.0002398,2]
[374536695,1753342249161,-2784.6397749,0.00024,2]
[374536696,1753342249173,-160.0,0.00024,7]
[374536697,1753342249186,-526.24749348,0.00024,7]
[374536698,1753342249199,-1694.61051996,0.00024,2]
[374536699,1753342249210,-11635.04772202,0.00024,2]
[374536700,1753342249220,-10155.56740585,0.00024,2]
[374536701,1753342249230,-161.99864371,0.00024,2]
[374536702,1753342249240,-215.88777038,0.00024,7]
[374536703,1753342249250,-327.11976304,0.00024003,10]
[374536704,1753342249261,-168.0,0.00024025,2]
[374536705,1753342249271,-508.35189117,0.00024027,30]
[374536706,1753342249281,-300.0,0.00024051,2]
[374536707,1753342249291,-3283.08947726,0.00024091,2]
[374536708,1753342249301,-708.25,0.00024109,2]
[374536709,1753342249311,-1958.35,0.00024109,2]
[374536710,1753342249330,-778.53,0.00024109,2]
[374536711,1753342249342,-1316.68,0.00024109,2]
[374536712,1753342249353,-1455.7,0.00024109,2]
[374536713,1753342249363,-1022.23,0.00024109,2]
[374536714,1753342249373,-678.39,0.00024109,2]
[374536715,1753342249383,-561.56,0.00024109,2]
[374536716,1753342249394,-2645.61,0.00024109,2]
[374536717,1753342249404,-708.99,0.00024109,2]
[374536718,1753342249414,-609.9,0.00024109,2]
[374536719,1753342249425,-794.3,0.00024109,2]
[374536720,1753342249436,-925.93,0.00024109,2]
[374536721,1753342249445,-2146.65,0.00024109,2]
[374536722,1753342249455,-177.46719147,0.00024109,2]
[374536723,1753342249668,-500.0,0.00024111,2]
[374536724,1753342249694,-500.0,0.00024133,2]
[374536725,1753342249715,-1086.70693008,0.00024153,7]
[374536726,1753342249726,-150.183687,0.0002416,7]
[374536727,1753342249736,-3283.08947726,0.00024163,2]
[374536728,1753342249746,-327.11976304,0.00024176,10]
[374536729,1753342249756,-609.5,0.00024183,6]
[374536730,1753342249767,-2200.0,0.00024224,2]
[374536731,1753342249777,-151.0,0.000243,7]
[374536732,1753342249787,-1879.03,0.000243,7]
[374536733,1753342249796,-499.7,0.00024323,2]
[374536734,1753342249807,-153.0,0.00024329,2]
[374536735,1753342249816,-500.0,0.00024336,2]
[374536736,1753342249826,-327.11976304,0.00024348,11]
[374536737,1753342249835,-500.0,0.00024352,2]
[374536738,1753342249845,-500.0,0.00024355,2]
[374536739,1753342249854,-223.0315306,0.0002437,2]
[374536740,1753342249863,-708.25,0.00024383,2]
[374536741,1753342249872,-1958.35,0.00024383,2]
[374536742,1753342249882,-778.53,0.00024383,2]
[374536743,1753342249892,-1316.68,0.00024383,2]
[374536744,1753342249902,-1455.7,0.00024383,2]
[374536745,1753342249912,-1022.23,0.00024383,2]
[374536746,1753342249921,-678.39,0.00024383,2]
[374536747,1753342249931,-561.56,0.00024383,2]
[374536748,1753342249940,-2645.61,0.00024383,2]
[374536749,1753342249949,-708.99,0.00024383,2]
[374536750,1753342249959,-609.9,0.00024383,2]
[374536751,1753342249969,-794.3,0.00024383,2]
[374536752,1753342249978,-925.93,0.00024383,2]
[374536753,1753342249988,-2146.65,0.00024383,2]
[374536754,1753342249998,-168.0,0.00024391,2]
[374536755,1753342250009,-362.931082,0.00024401,8]
[374536756,1753342250018,-500.0,0.00024401,2]
[374536757,1753342250027,-500.0,0.00024409,2]
[374536758,1753342250036,-2000.62367073,0.0002442,2]
[374536759,1753342250045,-500.0,0.00024473,2]
[374536760,1753342250055,-3283.0894773,0.00024488,2]
[374536761,1753342250067,-500.0,0.00024493,2]
[374536762,1753342250077,-151.0,0.000245,7]
[374536763,1753342250086,-151.0,0.000245,7]
[374536764,1753342250096,-151.0,0.000245,7]
[374536765,1753342250106,-151.0,0.000245,7]
[374536766,1753342250116,-151.0,0.000245,7]
[374536767,1753342250125,-151.0,0.000245,7]
[374536768,1753342250135,-151.0,0.000245,7]
[374536769,1753342250146,-151.0,0.000245,7]
[374536770,1753342250156,-151.0,0.000245,7]
[374536771,1753342250166,-151.0,0.000245,7]
[374536772,1753342250175,-151.0,0.000245,7]
[374536773,1753342250185,-151.0,0.000245,7]
[374536774,1753342250194,-151.0,0.000245,7]
[374536775,1753342250204,-151.0,0.000245,7]
[374536776,1753342250214,-151.0,0.000245,7]
[374536777,1753342250224,-151.0,0.000245,7]
[374536778,1753342250234,-151.0,0.000245,7]
[374536779,1753342250243,-276.880526,0.000245,7]
[374536780,1753342250253,-152.003611,0.000245,7]
[374536781,1753342250267,-152.003611,0.000245,7]
[374536782,1753342250276,-152.003611,0.000245,7]
[374536783,1753342250287,-152.003611,0.000245,7]
[374536784,1753342250296,-1313.39,0.000245,7]
[374536785,1753342250305,-8291.67,0.000245,7]
[374536786,1753342250315,-32199.3,0.000245,2]
[374536787,1753342250325,-150.0,0.000245,5]
[374536788,1753342250334,-892.0,0.000245,2]
[374536789,1753342250343,-305014.91289491,0.000245,4]
[374536790,1753342250421,-353914.88965945,0.000245,4]
[374536791,1753342250431,-1177.0,0.000245,30]
[374536792,1753342250440,-327.11976304,0.00024521,11]
[374536793,1753342250449,-609.5,0.00024541,7]
[374536794,1753342250459,-150.183687,0.0002459,7]
[374536795,1753342250468,-151.0,0.0002465,7]
[374536796,1753342250478,-151.0,0.0002465,7]
[374536797,1753342250487,-151.0,0.0002465,7]
[374536798,1753342250497,-151.0,0.0002465,7]
[374536799,1753342250508,-151.0,0.0002465,7]
[374536800,1753342250518,-151.0,0.0002465,7]
[374536801,1753342250528,-51671.42572496,0.0002465,2]
[374536802,1753342250538,-708.25,0.00024657,2]
[374536803,1753342250548,-1958.35,0.00024657,2]
[374536804,1753342250557,-778.53,0.00024657,2]
[374536805,1753342250567,-1316.68,0.00024657,2]
[374536806,1753342250576,-1455.7,0.00024657,2]
[374536807,1753342250586,-1022.23,0.00024657,2]
[374536808,1753342250596,-678.39,0.00024657,2]
[374536809,1753342250605,-561.56,0.00024657,2]
[374536810,1753342250614,-2645.61,0.00024657,2]
[374536811,1753342250624,-708.99,0.00024657,2]
[374536812,1753342250634,-609.9,0.00024657,2]
[374536813,1753342250643,-794.3,0.00024657,2]
[374536814,1753342250654,-925.93,0.00024657,2]
[374536815,1753342250663,-2146.65,0.00024657,2]
[374536816,1753342250673,-198.53213712,0.00024658,2]
[374536817,1753342250683,-151.0,0.00024658,2]
[374536818,1753342250692,-699.0,0.00024658,2]
[374536819,1753342250701,-151.0,0.00024658,2]
[374536820,1753342250711,-151.0,0.00024658,2]
[374536821,1753342250720,-151.0,0.00024658,2]
[374536822,1753342250729,-151.0,0.00024658,2]
[374536823,1753342250738,-202.58711799,0.00024658,2]
[374536824,1753342250748,-151.52309395,0.00024658,2]
[374536825,1753342250757,-248.67278207,0.00024658,2]
[374536826,1753342250767,-589.0,0.00024658,2]
[374536827,1753342250776,-151.0,0.00024658,2]
[374536828,1753342250786,-151.0,0.00024658,2]
[374536829,1753342250795,-151.0,0.00024658,2]
[374536830,1753342250805,-151.0,0.00024658,2]
[374536831,1753342250815,-151.0,0.00024658,2]
[374536832,1753342250824,-220.17848307,0.00024658,2]
[374536833,1753342250834,-609.0,0.00024658,2]
[374536834,1753342250844,-189.0,0.00024666,2]
[374536835,1753342250853,-800.0,0.00024693,2]
[374536836,1753342250863,-327.11976304,0.00024693,11]
[374536837,1753342250872,-800.0,0.00024726,2]
[374536838,1753342250881,-500.0,0.00024734,2]
[374536839,1753342250891,-150.183687,0.00024747,10]
[374536840,1753342250900,-5000.0,0.00024776,30]
[374536841,1753342250908,-5000.0,0.00024776,30]
[374536842,1753342250918,-5000.0,0.00024776,30]
[374536843,1753342250927,-5000.0,0.00024776,30]
[374536844,1753342250936,-5000.0,0.00024776,30]
[374536845,1753342250946,-168.0,0.00024779,2]
[374536846,1753342250955,-966.45,0.00024798,2]
[374536847,1753342250965,-151.0,0.000248,7]
[374536848,1753342250974,-1023.4,0.000248,2]
[374536849,1753342250984,-2000.0,0.000248,2]
[374536850,1753342250994,-151.0,0.000248,7]
[374536851,1753342251004,-151.0,0.000248,7]
[374536852,1753342251015,-151.0,0.000248,7]
[374536853,1753342251024,-152.003611,0.000248,7]
[374536854,1753342251034,-152.003611,0.000248,7]
[374536855,1753342251044,-553.07509306,0.000248,2]
[374536856,1753342251054,-1275.5227227,0.000248,2]
[374536857,1753342251068,-150.0,0.000248,2]
[374536858,1753342251077,-94719.43363234,0.000248,2]
[374536859,1753342251092,-448.95428223,0.000248,2]
[374536860,1753342251105,-500.0,0.000248,2]
[374536861,1753342251117,-2904.74854359,0.000248,2]
[374536862,1753342251128,-3678.58511886,0.000248,2]
[374536863,1753342251225,-460.0,0.00019178,2]
[374536864,1753342251234,-168.55974692,0.00021075,2]
[374536865,1753342251244,-460.0,0.00021643,2]
[374536866,1753342251253,-460.0,0.00021917,2]
[374536867,1753342251264,-460.0,0.00022191,2]
[374536868,1753342251273,-953.58,0.00023013,2]
[374536869,1753342251283,-953.58,0.00023287,2]
[374536870,1753342251292,-953.58,0.00023561,2]
[374536871,1753342251302,-1030.7,0.00023835,2]
[374536872,1753342251311,-411.20481031,0.00023835,2]
[374536873,1753342251333,-542.37518969,0.00023835,2]
[374536874,1753342251343,-1030.7,0.00024109,2]
[374536875,1753342251352,-953.58,0.00024109,2]
[374536876,1753342251362,-1030.7,0.00024383,2]
[374536877,1753342251371,-953.58,0.00024383,2]
[374536878,1753342251381,-1030.7,0.00024657,2]
[374536879,1753342251391,-953.58,0.00024657,2]
[374536880,1753342251402,-1857.59341198,0.000248,2]
[374536881,1753342251411,-4361.07802447,0.00024801,2]
[374536882,1753342251420,-800.0,0.00024812,2]
[374536883,1753342251430,-150.183687,0.00024852,30]
[374536884,1753342251439,-1275.52272266,0.0002486,2]
[374536885,1753342251449,-327.11976304,0.00024866,12]
[374536886,1753342251459,-240.73536208,0.00024872,2]
[374536887,1753342251472,-559.26463792,0.00024872,2]
[374536888,1753342251482,-453.78065951,0.00024873,2]
[374536889,1753342251579,-500.0,0.00019038,2]
[374536890,1753342251590,-150.0,0.00021121,2]
[374536891,1753342251602,-460.0,0.00022465,2]
[374536892,1753342251613,-460.0,0.00022739,2]
[374536893,1753342251623,-460.0,0.00023013,2]
[374536894,1753342251634,-460.0,0.00023287,2]
[374536895,1753342251645,-460.0,0.00023561,2]
[374536896,1753342251656,-460.0,0.00023835,2]
[374536897,1753342251665,-208.83,0.00024109,2]
[374536898,1753342251676,-151.216347,0.000245,7]
[374536899,1753342251686,-46.21934049,0.00024873,2]
[374536900,1753342251695,-160.0,0.00024876,3]
[374536901,1753342251705,-160.0,0.00024876,5]
[374536902,1753342251714,-806.64786777,0.0002488,2]
[374536903,1753342251725,-50451.94945569,0.00024888,2]
[374536904,1753342251738,-483.92673427,0.00024888,2]
[374536905,1753342251751,-29.97463219,0.00024888,2]
[374536906,1753342251767,-150.183687,0.0002489,15]
[374536907,1753342251781,-150.183687,0.0002489,15]
[374536908,1753342251801,-154.52934175,0.000249,2]
[374536909,1753342251883,-460.0,0.00019178,2]
[374536910,1753342251892,-460.0,0.00019178,2]
[374536911,1753342251901,-460.0,0.00019178,2]
[374536912,1753342251910,-460.0,0.00019178,2]
[374536913,1753342251920,-1826.7999997,0.00021085,10]
[374536914,1753342251934,-1253.3000003,0.00021085,10]
[374536915,1753342251944,-110.1458605,0.0002321,2]
[374536937,1753343059016,50014.38032887,0.00023,30]
[374536939,1753343130144,-644.62023551,0.00018255,2]
[374536940,1753343130168,-1104.5666264,0.00018355,2]
[374536941,1753343130205,-495.13272598,0.00018978,2]
[374536942,1753343136114,-495.13272595,0.00019003,2]
[374536943,1753343136133,-495.13272595,0.00019028,2]
[374536944,1753343136153,-495.13272595,0.00019052,2]
[374536945,1753343136173,-307.74054465,0.00019077,2]